[Event "Hasselbacken Open 2019"]
[Site "Stockholm"]
[Date "2019.11.02"]
[Round "6.9"]
[White "Torngren, Gustav"]
[Black "Baumgarten, Thomas"]
[Result "1-0"]
[ECO "D35"]
[WhiteElo "2237"]
[BlackElo "1925"]
[Annotator "RC"]
[PlyCount "63"]
[EventDate "2019.11.01"]
[EventCountry "SWE"]
[SourceTitle "playchess.com"]
[Source "ChessBase"]
[SourceQuality "1"]
[TimeControl "5400+30"]

1. d4 {[%emt 0:00:00]} d5 {[%emt 0:00:00]} 2. c4 {[%emt 0:00:00]} e6 {[%emt 0:00:05]} 3. Nc3 {[%emt 0:00:00]} Nf6 {[%emt 0:00:11]} 4. cxd5 {[%emt 0:01:10]} exd5 {[%emt 0:00:07]} 5. Bg5 {[%emt 0:00:16]} Be7 {[%emt 0:00:19]} 6. e3 {[%emt 0:00:14]} c6 {[%emt 0:01:06]} 7. Bd3 {[%emt 0:00:13]} O-O {[%emt 0:01:00]} 8. Qc2 {[%emt 0:03:53]} h6 {[%emt 0:00:30]} 9. Bh4 {[%emt 0:05:54]} Re8 {[%emt 0:01:29]} 10. Nf3 {[%emt 0:12:31]} Nbd7 {[%emt 0:04:10]} 11. O-O-O {[%emt 0:01:18]} b5 {[%emt 0:04:10]} 12. Rdg1 {[%emt 0:01:18]} a5 {[%emt 0:10:22]} 13. g4 {[%emt 0:06:30]} Ne4 {[%emt 0:09:58]} 14. Bxe7 {[%emt 0:07:55]} Qxe7 {[%emt 0:00:33]} 15. Bxe4 {[%emt 0:00:22]} dxe4 {[%emt 0:00:19]} 16. Nd2 {[%emt 0:00:12]} Bb7 {[%emt 0:02:04]} 17. g5 {[%emt 0:05:40]} hxg5 {[%emt 0:04:13]} 18. Qd1 {[%emt 0:17:33]} c5 {[%emt 0:07:38]} 19. Qh5 {[%emt 0:00:45]} cxd4 {[%emt 0:01:45]} 20. Ne2 {[%emt 0:17:57]} dxe3 {[%emt 0:14:32]} 21. fxe3 {[%emt 0:00:01]} Qc5+ {[%emt 0:08:03]} 22. Kb1 {[%emt 0:00:01]} Nf6 {[%emt 0:05:53]} 23. Rxg5 {[%emt 0:01:13]} Qxe3 {[%emt 0:01:43]} 24. Qh6 {[%emt 0:00:22]} Qd3+ {[%emt 0:06:59]} 25. Ka1 {[%emt 0:00:00]} g6 {[%emt 0:00:20]} 26. Rxg6+ {[%emt 0:00:40]} fxg6 {[%emt 0:00:09]} 27. Qxg6+ {[%emt 0:00:04]} Kh8 {[%emt 0:00:24]} 28. Qxf6+ {[%emt 0:00:02]} Kh7 {[%emt 0:00:40]} 29. Qf7+ {[%emt 0:01:29]} Kh8 {[%emt 0:01:35]} 30. Rg1 {[%emt 0:00:55]} Re7 {[%emt 0:03:04]} 31. Qh5+ {[%emt 0:00:17]} Rh7 {[%emt 0:00:20]} 32. Qe5+ {[%emt 0:00:06]} 1-0

[Event "Hasselbacken Open 2019"]
[Site "Stockholm"]
[Date "2019.11.03"]
[Round "7.6"]
[White "Ornstein, Axel"]
[Black "Torngren, Gustav"]
[Result "1/2-1/2"]
[ECO "A30"]
[WhiteElo "2297"]
[BlackElo "2237"]
[Annotator "ChessBase"]
[PlyCount "35"]
[EventDate "2019.11.01"]
[EventCountry "SWE"]
[SourceTitle "playchess.com"]
[Source "ChessBase"]
[SourceQuality "1"]
[TimeControl "5400+30"]

1. c4 {[%emt 0:01:30]} c5 {[%emt 0:00:00]} 2. g3 {[%emt 0:00:59]} g6 {[%emt 0:00:00]} 3. Bg2 {[%emt 0:00:06]} Nf6 {[%emt 0:00:23]} 4. Nc3 {[%emt 0:00:17]} Bg7 {[%emt 0:00:12]} 5. e3 {[%emt 0:03:04]} O-O {[%emt 0:01:43]} 6. Nge2 {[%emt 0:00:04]} Nc6 {[%emt 0:02:15]} 7. O-O {[%emt 0:06:07]} e6 {[%emt 0:02:02]} 8. d4 {[%emt 0:05:06]} cxd4 {[%emt 0:00:14]} 9. exd4 {[%emt 0:00:19]} d5 {[%emt 0:00:30]} 10. cxd5 {[%emt 0:00:06]} Nxd5 {[%emt 0:00:06]} 11. Nxd5 {[%emt 0:00:04]} exd5 {[%emt 0:00:01]} 12. Be3 {[%emt 0:00:07]} Bg4 {[%emt 0:06:55]} 13. Re1 {[%emt 0:00:08]} Qb6 {[%emt 0:19:52]} 14. Bxd5 {[%emt 0:06:36]} Rad8 {[%emt 0:02:43]} 15. Qb3 {[%emt 0:00:23]} Qxb3 {[%emt 0:21:58]} 16. Bxb3 {[%emt 0:00:19]} Bxe2 {[%emt 0:01:04]} 17. Rxe2 {[%emt 0:00:07]} Nxd4 {[%emt 0:00:07]} 18. Bxd4 1/2-1/2

[Event "Hasselbacken Open 2019"]
[Site "Stockholm"]
[Date "2019.11.03"]
[Round "7.8"]
[White "Papunidi, Matvey"]
[Black "Henriksson, Johan"]
[Result "1-0"]
[ECO "B13"]
[WhiteElo "2083"]
[BlackElo "2270"]
[Annotator "ChessBase"]
[PlyCount "117"]
[EventDate "2019.11.01"]
[EventCountry "SWE"]
[SourceTitle "playchess.com"]
[Source "ChessBase"]
[SourceQuality "1"]
[TimeControl "5400+30"]

1. e4 {[%emt 0:00:00]} c6 {[%emt 0:00:00]} 2. d4 {[%emt 0:00:00]} d5 {[%emt 0:00:00]} 3. exd5 {[%emt 0:00:08]} cxd5 {[%emt 0:00:00]} 4. Bd3 {[%emt 0:00:05]} Nc6 {[%emt 0:00:42]} 5. c3 {[%emt 0:01:38]} Nf6 {[%emt 0:01:22]} 6. Bf4 {[%emt 0:00:59]} g6 {[%emt 0:02:45]} 7. Nf3 {[%emt 0:01:40]} Bg7 {[%emt 0:01:33]} 8. O-O {[%emt 0:00:37]} O-O {[%emt 0:05:12]} 9. Nbd2 {[%emt 0:00:09]} Bf5 {[%emt 0:03:47]} 10. Bxf5 {[%emt 0:00:07]} gxf5 {[%emt 0:00:02]} 11. Ne1 {[%emt 0:00:17]} e6 {[%emt 0:01:08]} 12. Nd3 {[%emt 0:00:22]} Ne4 {[%emt 0:01:47]} 13. Re1 {[%emt 0:04:07]} Ne7 {[%emt 0:04:48]} 14. Re3 {[%emt 0:12:13]} Ng6 {[%emt 0:06:13]} 15. Rh3 {[%emt 0:01:11]} Nxf4 {[%emt 0:15:20]} 16. Nxf4 {[%emt 0:00:20]} Qg5 {[%emt 0:02:29]} 17. Nxe4 {[%emt 0:08:46]} Qxf4 {[%emt 0:02:54]} 18. Qh5 {[%emt 0:01:36]} h6 {[%emt 0:01:07]} 19. Rh4 {[%emt 0:00:32]} Qc7 {[%emt 0:05:01]} 20. Nc5 {[%emt 0:01:30]} Qe7 {[%emt 0:07:19]} 21. f4 {[%emt 0:02:38]} Kh7 {[%emt 0:07:55]} 22. Re1 {[%emt 0:01:01]} b6 {[%emt 0:04:06]} 23. Nd3 {[%emt 0:00:37]} Rh8 {[%emt 0:00:43]} 24. Re3 {[%emt 0:09:05]} Kg8 {[%emt 0:03:15]} 25. g4 {[%emt 0:02:46]} Bf6 {[%emt 0:00:56]} 26. Rhh3 {[%emt 0:07:22]} fxg4 {[%emt 0:00:16]} 27. Rhg3 {[%emt 0:02:14]} Kh7 {[%emt 0:04:45]} 28. Nb4 {[%emt 0:03:17]} Qf8 {[%emt 0:06:59]} 29. Nxd5 {[%emt 0:06:14]} Bd8 {[%emt 0:00:05]} 30. Rxg4 {[%emt 0:02:45]} Rg8 {[%emt 0:00:20]} 31. Rxg8 {[%emt 0:00:29]} Qxg8+ {[%emt 0:00:10]} 32. Rg3 {[%emt 0:00:06]} Qf8 {[%emt 0:00:24]} 33. Ne3 {[%emt 0:00:17]} a5 {[%emt 0:02:16]} 34. Ng4 {[%emt 0:01:09]} Ra7 {[%emt 0:00:47]} 35. Rh3 {[%emt 0:00:48]} Qg7 {[%emt 0:01:31]} 36. Kf2 {[%emt 0:01:03]} Qg6 {[%emt 0:00:34]} 37. Qxh6+ {[%emt 0:00:57]} Qxh6 {[%emt 0:00:03]} 38. Rxh6+ {[%emt 0:00:25]} Kg7 {[%emt 0:00:05]} 39. Rh5 {[%emt 0:00:50]} f5 {[%emt 0:00:25]} 40. Ne5 {[%emt 0:00:16]} Bf6 {[%emt 0:00:23]} 41. Rh3 {[%emt 0:00:39]} Bxe5 {[%emt 0:00:55]} 42. dxe5 {[%emt 0:00:19]} b5 {[%emt 0:00:58]} 43. Rd3 {[%emt 0:00:48]} Rc7 {[%emt 0:01:57]} 44. Ke3 {[%emt 0:02:10]} b4 {[%emt 0:01:26]} 45. cxb4 {[%emt 0:01:48]} axb4 {[%emt 0:00:04]} 46. Rd4 {[%emt 0:00:04]} Ra7 {[%emt 0:00:23]} 47. Rxb4 {[%emt 0:00:05]} Rxa2 {[%emt 0:00:03]} 48. Kd4 {[%emt 0:03:28]} Ra5 {[%emt 0:00:41]} 49. Rb7+ {[%emt 0:01:21]} Kf8 {[%emt 0:00:06]} 50. b4 {[%emt 0:00:10]} Ra2 {[%emt 0:00:14]} 51. Rh7 {[%emt 0:00:06]} Rf2 {[%emt 0:02:43]} 52. Rh4 {[%emt 0:00:06]} Ke7 {[%emt 0:00:22]} 53. Kc5 {[%emt 0:00:08]} Kd7 {[%emt 0:01:04]} 54. Kb6 {[%emt 0:00:49]} Rb2 {[%emt 0:01:00]} 55. b5 {[%emt 0:00:21]} Rb4 {[%emt 0:00:09]} 56. Kc5 {[%emt 0:00:27]} Re4 {[%emt 0:00:51]} 57. b6 {[%emt 0:00:30]} Re2 {[%emt 0:00:20]} 58. Rh7+ {[%emt 0:00:10]} Kc8 {[%emt 0:00:26]} 59. Kd6 {[%emt 0:00:11]} 1-0

[Event "Hasselbacken Open 2019"]
[Site "Stockholm"]
[Date "2019.11.03"]
[Round "7.9"]
[White "Vainerchuk, Barys"]
[Black "Namini, Armin"]
[Result "1/2-1/2"]
[ECO "B61"]
[WhiteElo "2136"]
[BlackElo "2249"]
[Annotator "ChessBase"]
[PlyCount "89"]
[EventDate "2019.11.01"]
[EventCountry "SWE"]
[SourceTitle "playchess.com"]
[Source "ChessBase"]
[SourceQuality "1"]
[TimeControl "5400+30"]

1. e4 {[%emt 0:00:00]} c5 {[%emt 0:00:39]} 2. Nf3 {[%emt 0:00:00]} d6 {[%emt 0:01:13]} 3. d4 {[%emt 0:00:04]} Nf6 {[%emt 0:00:04]} 4. Nc3 {[%emt 0:00:08]} cxd4 {[%emt 0:00:04]} 5. Nxd4 {[%emt 0:00:06]} Nc6 {[%emt 0:00:53]} 6. Bg5 {[%emt 0:01:07]} Bd7 {[%emt 0:00:29]} 7. Qd2 {[%emt 0:00:34]} Rc8 {[%emt 0:00:36]} 8. O-O-O {[%emt 0:04:42]} Nxd4 {[%emt 0:00:06]} 9. Qxd4 {[%emt 0:00:07]} Qa5 {[%emt 0:00:06]} 10. Qd2 {[%emt 0:06:20]} Ng4 {[%emt 0:00:23]} 11. f4 {[%emt 0:11:10]} h6 {[%emt 0:05:03]} 12. Bh4 {[%emt 0:00:22]} g5 {[%emt 0:00:39]} 13. h3 {[%emt 0:19:14]} gxh4 {[%emt 0:22:16]} 14. hxg4 {[%emt 0:00:06]} Bg7 {[%emt 0:00:06]} 15. e5 {[%emt 0:00:53]} Bxg4 {[%emt 0:00:54]} 16. Bb5+ {[%emt 0:00:34]} Kf8 {[%emt 0:00:17]} 17. Rde1 {[%emt 0:11:10]} h5 {[%emt 0:16:39]} 18. exd6 {[%emt 0:16:52]} Bxc3 {[%emt 0:04:10]} 19. dxe7+ {[%emt 0:00:39]} Kg7 {[%emt 0:00:04]} 20. bxc3 {[%emt 0:00:10]} Qxb5 {[%emt 0:00:32]} 21. Re5 {[%emt 0:01:19]} Qd7 {[%emt 0:12:39]} 22. Rg5+ {[%emt 0:00:16]} Kh6 {[%emt 0:00:47]} 23. Qxd7 {[%emt 0:00:26]} Bxd7 {[%emt 0:00:04]} 24. Rxh4 {[%emt 0:00:04]} Bg4 {[%emt 0:02:47]} 25. Rgxg4 {[%emt 0:00:04]} Rc5 {[%emt 0:07:25]} 26. Rg3 {[%emt 0:02:40]} Re8 {[%emt 0:00:20]} 27. Re3 {[%emt 0:01:03]} Kg6 {[%emt 0:00:12]} 28. Rh1 {[%emt 0:11:41]} Kf6 {[%emt 0:01:22]} 29. Rhe1 {[%emt 0:00:13]} Ra5 {[%emt 0:10:31]} 30. Kb2 {[%emt 0:00:33]} Rb5+ {[%emt 0:00:02]} 31. Ka1 {[%emt 0:00:31]} Rc5 {[%emt 0:00:44]} 32. Kb2 {[%emt 0:03:25]} Rb5+ {[%emt 0:00:03]} 33. Kc1 {[%emt 0:00:05]} Ra5 {[%emt 0:00:11]} 34. Re5 {[%emt 0:03:50]} Rxa2 {[%emt 0:00:18]} 35. Kb1 {[%emt 0:00:06]} Ra4 {[%emt 0:05:02]} 36. Rxh5 {[%emt 0:02:13]} Rc4 {[%emt 0:07:07]} 37. f5 {[%emt 0:03:01]} Rc7 {[%emt 0:01:25]} 38. Rh6+ {[%emt 0:02:34]} Kxf5 {[%emt 0:00:03]} 39. Rf1+ {[%emt 0:00:30]} Kg5 {[%emt 0:00:55]} 40. Rhf6 {[%emt 0:00:33]} Rexe7 {[%emt 0:01:15]} 41. R1f5+ {[%emt 0:00:11]} Kg4 {[%emt 0:00:01]} 42. Rf4+ {[%emt 0:00:13]} Kg5 {[%emt 0:00:27]} 43. R4f5+ {[%emt 0:00:05]} Kg4 {[%emt 0:00:15]} 44. Rf4+ {[%emt 0:00:05]} Kg5 {[%emt 0:00:03]} 45. R4f5+ {[%emt 0:00:03]} 1/2-1/2

[Event "Hasselbacken Open 2019"]
[Site "Stockholm"]
[Date "2019.11.03"]
[Round "7.10"]
[White "Walinder, Lars"]
[Black "Hardarson, Jon Trausti"]
[Result "1-0"]
[ECO "B38"]
[WhiteElo "2299"]
[BlackElo "2098"]
[Annotator "ChessBase"]
[PlyCount "104"]
[EventDate "2019.11.01"]
[EventCountry "SWE"]
[SourceTitle "playchess.com"]
[Source "ChessBase"]
[SourceQuality "1"]
[TimeControl "5400+30"]

1. c4 {[%emt 0:00:00]} c5 {[%emt 0:13:46]} 2. Nf3 {[%emt 0:01:04]} Nc6 {[%emt 0:01:50]} 3. d4 {[%emt 0:00:19]} cxd4 {[%emt 0:00:14]} 4. Nxd4 {[%emt 0:00:07]} g6 {[%emt 0:00:22]} 5. e4 {[%emt 0:00:25]} Bg7 {[%emt 0:00:10]} 6. Be3 {[%emt 0:00:09]} Nf6 {[%emt 0:01:54]} 7. Nc3 {[%emt 0:00:14]} d6 {[%emt 0:01:23]} 8. Be2 {[%emt 0:00:23]} O-O {[%emt 0:00:13]} 9. O-O {[%emt 0:00:08]} Bd7 {[%emt 0:03:03]} 10. Qd2 {[%emt 0:00:39]} a6 {[%emt 0:04:04]} 11. f3 {[%emt 0:00:21]} Rc8 {[%emt 0:02:51]} 12. Rfd1 {[%emt 0:04:40]} Re8 {[%emt 0:03:29]} 13. Rac1 {[%emt 0:05:56]} Qa5 {[%emt 0:02:12]} 14. Nb3 {[%emt 0:22:46]} Qb4 {[%emt 0:03:01]} 15. Qc2 {[%emt 0:18:32]} Na5 {[%emt 0:04:09]} 16. c5 {[%emt 0:12:27]} Nxb3 {[%emt 0:08:55]} 17. Qxb3 {[%emt 0:02:47]} Qxb3 {[%emt 0:02:01]} 18. axb3 {[%emt 0:00:01]} Be6 {[%emt 0:04:03]} 19. cxd6 {[%emt 0:02:31]} exd6 {[%emt 0:00:05]} 20. Rxd6 {[%emt 0:01:02]} Bf8 {[%emt 0:22:09]} 21. Rd2 {[%emt 0:18:10]} Bxb3 {[%emt 0:00:28]} 22. Bd1 {[%emt 0:00:31]} Be6 {[%emt 0:02:16]} 23. Be2 {[%emt 0:02:17]} Nd7 {[%emt 0:06:15]} 24. Rdd1 {[%emt 0:00:23]} Ne5 {[%emt 0:09:41]} 25. Nd5 {[%emt 0:00:45]} Bxd5 {[%emt 0:00:41]} 26. Rxc8 {[%emt 0:00:22]} Rxc8 {[%emt 0:00:04]} 27. Rxd5 {[%emt 0:00:12]} Bg7 {[%emt 0:01:32]} 28. f4 {[%emt 0:03:02]} Nc4 {[%emt 0:02:36]} 29. Bxc4 {[%emt 0:00:54]} Rxc4 {[%emt 0:00:01]} 30. Rd8+ {[%emt 0:00:14]} Bf8 {[%emt 0:00:02]} 31. f5 {[%emt 0:00:58]} Kg7 {[%emt 0:00:58]} 32. f6+ {[%emt 0:00:16]} Kxf6 {[%emt 0:00:02]} 33. Rxf8 {[%emt 0:00:25]} Rxe4 {[%emt 0:00:02]} 34. Bd2 {[%emt 0:01:54]} Re7 {[%emt 0:01:43]} 35. Bc3+ {[%emt 0:00:34]} Kf5 {[%emt 0:00:02]} 36. Kf2 {[%emt 0:00:17]} h5 {[%emt 0:00:01]} 37. Rd8 {[%emt 0:00:34]} Rc7 {[%emt 0:01:38]} 38. Rd6 {[%emt 0:00:16]} Ke4 {[%emt 0:00:18]} 39. Rd4+ {[%emt 0:00:19]} Kf5 {[%emt 0:00:07]} 40. Kf3 {[%emt 0:00:08]} Ke6 {[%emt 0:00:45]} 41. Kf4 {[%emt 0:00:26]} Rc5 {[%emt 0:00:49]} 42. Re4+ {[%emt 0:00:26]} Kd7 {[%emt 0:00:02]} 43. Bb4 {[%emt 0:01:38]} Rf5+ {[%emt 0:00:17]} 44. Ke3 {[%emt 0:00:10]} Kc6 {[%emt 0:00:11]} 45. Rf4 {[%emt 0:00:25]} Rg5 {[%emt 0:01:29]} 46. Kf3 {[%emt 0:01:01]} Rb5 {[%emt 0:00:20]} 47. Bc3 {[%emt 0:00:08]} f5 {[%emt 0:00:10]} 48. Rc4+ {[%emt 0:00:24]} Kd5 {[%emt 0:00:59]} 49. Rd4+ {[%emt 0:00:07]} Ke6 {[%emt 0:00:36]} 50. Kf4 {[%emt 0:00:07]} Re5 {[%emt 0:00:23]} 51. Rb4 {[%emt 0:01:51]} Re2 {[%emt 0:00:22]} 52. Rb6+ {[%emt 0:00:06]} Kd5 {Ke4+} 1-0

[Event "Hasselbacken Open 2019"]
[Site "Stockholm"]
[Date "2019.11.03"]
[Round "8.9"]
[White "Johansson, Gunnar"]
[Black "Walinder, Lars"]
[Result "1/2-1/2"]
[ECO "D37"]
[WhiteElo "2252"]
[BlackElo "2299"]
[Annotator "ChessBase"]
[PlyCount "30"]
[EventDate "2019.11.01"]
[EventCountry "SWE"]
[SourceTitle "playchess.com"]
[Source "ChessBase"]
[SourceQuality "1"]
[TimeControl "5400+30"]

1. d4 {[%emt 0:00:00]} d5 {[%emt 0:00:00]} 2. c4 {[%emt 0:00:00]} e6 {[%emt 0:00:00]} 3. Nc3 {[%emt 0:00:00]} Nf6 {[%emt 0:00:47]} 4. Nf3 {[%emt 0:00:10]} Be7 {[%emt 0:00:22]} 5. Bf4 {[%emt 0:00:07]} O-O {[%emt 0:00:22]} 6. e3 {[%emt 0:00:09]} b6 {[%emt 0:00:20]} 7. Bd3 {[%emt 0:00:33]} dxc4 {[%emt 0:01:40]} 8. Bxc4 {[%emt 0:00:45]} Ba6 {[%emt 0:00:08]} 9. Qe2 {[%emt 0:03:11]} Qc8 {[%emt 0:05:20]} 10. O-O {[%emt 0:02:37]} c5 {[%emt 0:02:46]} 11. dxc5 {[%emt 0:02:32]} Bxc5 {[%emt 0:02:26]} 12. Bxa6 {[%emt 0:05:28]} Nxa6 {[%emt 0:01:40]} 13. Rfd1 {[%emt 0:06:24]} Qb7 {[%emt 0:02:13]} 14. Ne5 {[%emt 0:12:58]} Rfd8 {[%emt 0:03:17]} 15. Rxd8+ {[%emt 0:04:42]} Rxd8 {[%emt 0:00:42]} 1/2-1/2

[Event "Hasselbacken Open 2019"]
[Site "Stockholm"]
[Date "2019.11.03"]
[Round "8.10"]
[White "Svensson, Mikael"]
[Black "Ornstein, Axel"]
[Result "1/2-1/2"]
[ECO "A46"]
[WhiteElo "2163"]
[BlackElo "2297"]
[Annotator "ChessBase"]
[PlyCount "56"]
[EventDate "2019.11.01"]
[EventCountry "SWE"]
[SourceTitle "playchess.com"]
[Source "ChessBase"]
[SourceQuality "1"]
[TimeControl "5400+30"]

1. d4 {[%emt 0:00:00]} Nf6 {[%emt 0:00:00]} 2. Nf3 {[%emt 0:00:00]} e6 {[%emt 0:00:31]} 3. Bf4 {[%emt 0:00:00]} c5 {[%emt 0:04:42]} 4. e3 {[%emt 0:00:00]} b6 {[%emt 0:00:31]} 5. Nc3 {[%emt 0:00:07]} cxd4 {[%emt 0:01:33]} 6. Nb5 {[%emt 0:04:55]} Nd5 {[%emt 0:00:07]} 7. Qxd4 {[%emt 0:02:52]} Nc6 {[%emt 0:03:37]} 8. Nd6+ {[%emt 0:04:27]} Bxd6 {[%emt 0:00:03]} 9. Qxg7 {[%emt 0:00:10]} Bb4+ {[%emt 0:00:06]} 10. c3 {[%emt 0:01:51]} Bxc3+ {[%emt 0:00:07]} 11. bxc3 {[%emt 0:00:26]} Qf6 {[%emt 0:00:02]} 12. Qxf6 {[%emt 0:00:21]} Nxf6 {[%emt 0:00:06]} 13. c4 {[%emt 0:13:43]} Ne4 {[%emt 0:03:44]} 14. Nd2 {[%emt 0:08:35]} Nxd2 {[%emt 0:02:17]} 15. Kxd2 {[%emt 0:00:06]} e5 {[%emt 0:00:11]} 16. Bg3 {[%emt 0:00:40]} Ba6 {[%emt 0:02:59]} 17. Rc1 {[%emt 0:10:46]} d6 {[%emt 0:00:10]} 18. Bd3 {[%emt 0:06:21]} Rc8 {[%emt 0:00:07]} 19. f4 {[%emt 0:00:47]} f6 {[%emt 0:13:04]} 20. Bh4 {[%emt 0:05:33]} O-O {[%emt 0:06:25]} 21. Bf5 {[%emt 0:05:04]} Rc7 {[%emt 0:00:06]} 22. Rhf1 {[%emt 0:01:07]} Na5 {[%emt 0:09:31]} 23. Be6+ {[%emt 0:00:13]} Kg7 {[%emt 0:00:04]} 24. Kd3 {[%emt 0:13:47]} b5 {[%emt 0:01:14]} 25. cxb5 {[%emt 0:02:49]} Bxb5+ {[%emt 0:00:06]} 26. Ke4 {[%emt 0:00:16]} Re7 {[%emt 0:00:11]} 27. f5 {[%emt 0:10:39]} Bxf1 {[%emt 0:07:41]} 28. Rxf1 {[%emt 0:00:02]} Rh8 1/2-1/2